fUSD/lending_fUSD_20240818
["ID","MTS","AMOUNT","RATE_DAILY","PERIOD"]
[335190597,1723965999417,340.77,9.831e-05,2]
[335190606,1723966077072,164.40811307,9.831e-05,2]
[335190607,1723966077096,150.0,9.831e-05,2]
[335190608,1723966077120,150.0,9.831e-05,2]
[335190609,1723966077142,150.0,9.831e-05,2]
[335190610,1723966077164,235.01441198,9.831e-05,2]
[335190611,1723966077190,785.67207405,9.831e-05,2]
[335190613,1723966168082,1635.0945991,9.831e-05,2]
[335190614,1723966172622,26162.30956378,9.943e-05,2]
[335190617,1723966183563,250.0,9.828e-05,2]
[335190618,1723966215172,266.66,9.824e-05,2]
[335190624,1723966232142,-550.0,0.0001,2]
[335190626,1723966232151,-317.28676016,0.00010097,2]
[335190628,1723966232161,-467.98716975,0.0001041,2]
[335190629,1723966232175,-627.68,0.0001041,2]
[335190630,1723966232186,-453.30283025,0.0001041,2]
[335190631,1723966232195,-29.47302719,0.00010467,2]
[335190632,1723966232401,-338.52697281,0.00010467,2]
[335190633,1723966232410,-1162.27113799,0.00010471,2]
[335190634,1723966232423,-347.40099992,0.00010471,2]
[335190635,1723966232435,-3025.06328036,0.00010471,2]
[335190637,1723966232446,-2330.14158828,0.00010566,2]
[335190639,1723966232456,-263.8512529,0.00010566,2]
[335190642,1723966232468,-14.99407682,0.00010566,2]
[335190643,1723966232479,-500.0,0.00010645,2]
[335190645,1723966232488,-300.0,0.00010698,2]
[335190647,1723966232498,-300.0,0.00010698,2]
[335190649,1723966232507,-1709.69970942,0.00010699,2]
[335190651,1723966232516,-150.0,0.00010729,2]
[335190653,1723966232525,-2354.23,0.00010733,2]
[335190655,1723966232535,-499.99,0.00010733,2]
[335190657,1723966232544,-150.99,0.00010733,2]
[335190659,1723966232553,-463.81,0.00010733,2]
[335190661,1723966232562,-2297.28,0.00010734,2]
[335190664,1723966232571,-528.84,0.00010734,2]
[335190667,1723966232584,-150.0,0.00010734,2]
[335190670,1723966232597,-150.0,0.00010734,2]
[335190672,1723966232606,-150.99,0.00010735,2]
[335190673,1723966232615,-150.0,0.00010736,2]
[335190674,1723966232624,-150.0,0.00010744,2]
[335190675,1723966232643,-463.25282712,0.00010744,2]
[335190676,1723966232654,-960.92161359,0.00010744,2]
[335190677,1723966232665,-75.82555929,0.00010744,2]
[335190678,1723966232675,-150.0,0.00010748,2]
[335190679,1723966232684,-150.0,0.00010751,2]
[335190680,1723966232693,-129.60541447,0.00010756,2]
[335190681,1723966232704,-20.39458553,0.00010756,2]
[335190683,1723966232714,-150.0,0.00010758,2]
[335190685,1723966232724,-1080.59348385,0.00010759,2]
[335190687,1723966232735,-332.32043265,0.00010759,2]
[335190688,1723966232745,-150.0,0.00010761,2]
[335190689,1723966232754,-150.0,0.00010763,2]
[335190690,1723966232763,-150.0,0.00010774,2]
[335190691,1723966232773,-1500.0,0.00010784,2]
[335190692,1723966232782,-203.24854396,0.00010789,2]
[335190693,1723966232792,-923.076,0.0001079,2]
[335190694,1723966232801,-150.0,0.0001079,2]
[335190695,1723966232811,-150.0,0.0001079,2]
[335190696,1723966232820,-150.0,0.00010796,2]
[335190697,1723966232830,-372.86756186,0.00010799,2]
[335190698,1723966232839,-162.55210254,0.000108,2]
[335190699,1723966232849,-1500.0,0.00010806,2]
[335190700,1723966232858,-150.0,0.00010808,2]
[335190701,1723966232868,-150.0,0.00010809,2]
[335190702,1723966232877,-150.0,0.00010812,2]
[335190703,1723966232886,-150.0,0.00010815,2]
[335190704,1723966232895,-150.0,0.00010817,2]
[335190705,1723966232905,-150.0,0.00010819,2]
[335190706,1723966232914,-1500.0,0.00010819,2]
[335190707,1723966232924,-150.0,0.0001082,2]
[335190708,1723966232933,-150.0,0.00010827,2]
[335190709,1723966232942,-150.0,0.00010834,2]
[335190710,1723966232951,-1500.0,0.00010834,2]
[335190711,1723966232960,-150.0,0.00010837,2]
[335190712,1723966232970,-150.0,0.0001084,2]
[335190713,1723966232980,-1500.0,0.00010843,2]
[335190714,1723966232989,-1500.0,0.00010846,2]
[335190715,1723966232999,-150.0,0.00010848,2]
[335190716,1723966233008,-150.0,0.00010848,2]
[335190717,1723966233018,-150.0,0.00010849,2]
[335190718,1723966233027,-150.0,0.00010849,2]
[335190719,1723966233036,-155.0,0.00010852,2]
[335190720,1723966233046,-150.0,0.00010853,2]
[335190721,1723966233056,-150.0,0.00010855,2]
[335190722,1723966233065,-729.56564802,0.00010861,2]
[335190723,1723966233075,-285.08,0.00010861,2]
[335190724,1723966233085,-150.0,0.00010873,2]
[335190725,1723966233096,-150.0,0.00010874,2]
[335190726,1723966233106,-183.29953857,0.00010877,2]
[335190727,1723966233114,-5926.79048729,0.0001088,2]
[335190728,1723966233127,-1047.0,0.0001088,2]
[335190729,1723966233138,-1016.00057471,0.0001088,2]
[335190730,1723966238206,-742.1170854,0.00010799,2]
[335190731,1723966238217,-600.0,0.00010872,2]
[335190732,1723966238229,-6991.24389941,0.0001088,2]
[335190733,1723966238243,-667.76472037,0.0001088,2]
[335190734,1723966238256,-326.82220256,0.0001088,2]
[335190735,1723966238267,-1470.87908501,0.0001088,2]
[335190736,1723966238279,-11491.499373,0.0001088,2]
[335190737,1723966238289,-1654.53650654,0.0001088,2]
[335190738,1723966238302,-661.76660003,0.0001088,2]
[335190739,1723966238378,-12501.87849742,0.0001088,2]
[335190740,1723966238387,-150.0,0.00010884,2]
[335190741,1723966238396,-1500.0,0.00010884,2]
[335190742,1723966238406,-150.0,0.00010885,2]
[335190743,1723966238415,-150.0,0.00010886,2]
[335190744,1723966238426,-352.77390033,0.00010888,2]
[335190745,1723966238435,-155.0,0.00010888,2]
[335190746,1723966238445,-197.16,0.00010889,2]
[335190747,1723966238456,-197.16,0.00010889,2]
[335190748,1723966238466,-197.16,0.00010889,2]
[335190749,1723966238476,-197.16,0.00010889,2]
[335190750,1723966238485,-197.16,0.00010889,2]
[335190751,1723966238495,-197.16,0.00010889,2]
[335190752,1723966238504,-197.16,0.00010889,2]
[335190753,1723966238513,-197.16,0.00010889,2]
[335190754,1723966238523,-197.16,0.00010889,2]
[335190756,1723966238532,-197.16,0.00010889,2]
[335190757,1723966238541,-197.16,0.00010889,2]
[335190759,1723966238551,-197.16,0.00010889,2]
[335190760,1723966238560,-197.16,0.00010889,2]
[335190761,1723966238569,-197.16,0.00010889,2]
[335190762,1723966238579,-197.16,0.00010889,2]
[335190763,1723966238588,-197.16,0.00010889,2]
[335190764,1723966238597,-197.16,0.00010889,2]
[335190765,1723966238607,-197.16,0.00010889,2]
[335190766,1723966238616,-197.16,0.00010889,2]
[335190767,1723966238625,-197.16,0.00010889,2]
[335190768,1723966238634,-197.16,0.00010889,2]
[335190769,1723966238644,-197.16,0.00010889,2]
[335190770,1723966238653,-197.16,0.00010889,2]
[335190771,1723966238663,-197.16,0.00010889,2]
[335190772,1723966238672,-197.16,0.00010889,2]
[335190773,1723966238681,-197.16,0.00010889,2]
[335190774,1723966238691,-197.16,0.00010889,2]
[335190775,1723966238700,-197.16,0.00010889,2]
[335190776,1723966238710,-197.16,0.00010889,2]
[335190777,1723966238719,-197.16,0.00010889,2]
[335190778,1723966238729,-197.16,0.00010889,2]
[335190779,1723966238739,-197.16,0.00010889,2]
[335190780,1723966238748,-197.16,0.00010889,2]
[335190781,1723966238935,-197.16,0.00010889,2]
[335190782,1723966238945,-197.16,0.00010889,2]
[335190783,1723966238955,-197.16,0.00010889,2]
[335190784,1723966238965,-197.16,0.00010889,2]
[335190785,1723966238976,-197.16,0.00010889,2]
[335190786,1723966238985,-197.16,0.00010889,2]
[335190787,1723966238995,-197.16,0.00010889,2]
[335190788,1723966239004,-197.16,0.00010889,2]
[335190789,1723966239014,-197.16,0.00010889,2]
[335190790,1723966239023,-197.16,0.00010889,2]
[335190791,1723966239032,-197.16,0.00010889,2]
[335190792,1723966239041,-197.16,0.00010889,2]
[335190793,1723966239050,-197.16,0.00010889,2]
[335190794,1723966239060,-197.16,0.00010889,2]
[335190795,1723966239069,-197.16,0.00010889,2]
[335190796,1723966239080,-197.16,0.00010889,2]
[335190797,1723966239094,-38.50760225,0.00010889,2]
[335190798,1723966239140,-158.65239775,0.00010889,2]
[335190799,1723966239150,-197.16,0.00010889,2]
[335190800,1723966239160,-197.16,0.00010889,2]
[335190801,1723966239171,-174.32208448,0.00010889,2]
[335190802,1723966239251,-22.83791552,0.00010889,2]
[335190803,1723966239261,-197.16,0.00010889,2]
[335190804,1723966239270,-1040.68862,0.0001089,2]
[335190805,1723966239280,-183.07912237,0.0001089,2]
[335190806,1723966239289,-155.0,0.0001089,2]
[335190807,1723966239299,-296.99205589,0.0001089,2]
[335190808,1723966239308,-949.4543693,0.0001089,2]
[335190809,1723966239317,-531.33260631,0.0001089,2]
[335190810,1723966239326,-202.99768405,0.0001089,2]
[335190811,1723966239336,-462.069901,0.00010899,2]
[335190812,1723966239345,-462.069901,0.00010899,2]
[335190813,1723966239354,-151.0,0.00010899,2]
[335190814,1723966239364,-151.0,0.00010899,2]
[335190815,1723966239373,-151.0,0.00010899,2]
[335190816,1723966239383,-151.0,0.00010899,2]
[335190817,1723966239392,-151.0,0.00010899,2]
[335190818,1723966239401,-152.896181,0.00010899,2]
[335190819,1723966239411,-661.15044,0.00010899,2]
[335190820,1723966239420,-661.15044,0.00010899,2]
[335190821,1723966239429,-753.617282,0.00010899,2]
[335190822,1723966239439,-151.0,0.00010899,2]
[335190823,1723966239448,-753.617282,0.00010899,2]
[335190824,1723966239458,-151.0,0.00010899,2]
[335190825,1723966239467,-151.329886,0.00010899,2]
[335190826,1723966239478,-151.0,0.00010899,2]
[335190827,1723966239487,-151.0,0.00010899,2]
[335190828,1723966239497,-221.678074,0.00010899,2]
[335190829,1723966239506,-151.0,0.00010899,2]
[335190830,1723966239515,-221.678074,0.00010899,2]
[335190831,1723966239525,-151.0,0.00010899,2]
[335190832,1723966239534,-151.0,0.00010899,2]
[335190833,1723966239543,-226.869144,0.00010899,2]
[335190834,1723966239552,-226.869144,0.00010899,2]
[335190835,1723966239562,-198.439747,0.00010899,2]
[335190836,1723966239571,-198.439747,0.00010899,2]
[335190837,1723966239581,-151.0,0.00010899,2]
[335190838,1723966239590,-151.0,0.00010899,2]
[335190839,1723966239599,-151.0,0.00010899,2]
[335190840,1723966239608,-1731.843548,0.00010899,2]
[335190841,1723966239618,-1731.843548,0.00010899,2]
[335190842,1723966239627,-858.28004,0.00010899,2]
[335190843,1723966239636,-151.0,0.00010899,2]
[335190844,1723966239645,-858.28004,0.00010899,2]
[335190845,1723966239654,-151.0,0.00010899,2]
[335190846,1723966239664,-151.0,0.00010899,2]
[335190847,1723966239673,-151.0,0.00010899,2]
[335190848,1723966239682,-151.0,0.00010899,2]
[335190849,1723966239692,-183.142897,0.00010899,2]
[335190850,1723966239701,-183.142897,0.00010899,2]
[335190851,1723966239712,-10000.0,0.00010899,2]
[335190852,1723966239722,-10000.0,0.00010899,2]
[335190853,1723966239731,-10000.0,0.00010899,2]
[335190854,1723966239740,-10000.0,0.00010899,2]
[335190855,1723966239750,-10000.0,0.00010899,2]
[335190856,1723966239760,-10000.0,0.00010899,2]
[335190857,1723966239770,-243.49493,0.00010899,2]
[335190858,1723966239779,-243.49493,0.00010899,2]
[335190859,1723966239789,-243.49493,0.00010899,2]
[335190860,1723966239798,-243.49493,0.00010899,2]
[335190861,1723966239808,-16837.61153511,0.00010899,2]
[335190862,1723966239817,-16837.61153505,0.00010899,2]
[335190863,1723966239827,-252.95525277,0.00010899,2]
[335190864,1723966239886,-1072.50233623,0.00010899,2]
[335190865,1723966239897,-7015.537408,0.00010899,2]
[335190866,1723966239908,-1969.22712928,0.00010899,2]
[335190867,1723966239919,-4795.42269386,0.00010899,2]
[335190870,1723966240437,-1731.96671491,0.00010899,2]
[335190871,1723966240447,-961.68238644,0.00010899,2]
[335190872,1723966240459,-288.82,0.00010899,2]
[335190873,1723966240571,-15587.10914861,0.00010899,2]
[335190874,1723966240581,-16837.61153505,0.00010899,2]
[335190875,1723966240591,-10293.56390312,0.00010899,2]
[335190876,1723966240602,-311.6,0.00010899,2]
[335190877,1723966240613,-2495.58714316,0.00010899,2]
[335190878,1723966240626,-1175.481928,0.00010899,2]
[335190879,1723966240639,-2561.37856077,0.00010899,2]
[335190880,1723966240649,-16837.61153505,0.00010899,2]
[335190881,1723966240659,-16837.61153505,0.00010899,2]
[335190882,1723966240668,-16837.61153505,0.00010899,2]
[335190883,1723966240678,-155.39674528,0.00010899,2]
[335190884,1723966240688,-502.08,0.00010899,2]
[335190885,1723966240698,-2017.21700967,0.000109,2]
[335190886,1723966240709,-3378.25213908,0.000109,2]
[335190887,1723966240719,-462.069901,0.000109,2]
[335190888,1723966240729,-462.069901,0.000109,2]
[335190889,1723966240738,-151.0,0.000109,2]
[335190890,1723966240747,-151.0,0.000109,2]
[335190891,1723966240757,-151.0,0.000109,2]
[335190892,1723966240766,-151.0,0.000109,2]
[335190893,1723966240775,-151.0,0.000109,2]
[335190894,1723966240784,-661.15044,0.000109,2]
[335190895,1723966240794,-661.15044,0.000109,2]
[335190896,1723966240803,-753.617282,0.000109,2]
[335190897,1723966240812,-150.0,0.000109,2]
[335190898,1723966240821,-151.0,0.000109,2]
[335190899,1723966240831,-753.617282,0.000109,2]
[335190900,1723966240840,-151.0,0.000109,2]
[335190901,1723966240849,-151.0,0.000109,2]
[335190902,1723966240859,-151.0,0.000109,2]
[335190903,1723966240868,-151.0,0.000109,2]
[335190904,1723966240877,-221.678074,0.000109,2]
[335190905,1723966240887,-205.293754,0.000109,2]
[335190906,1723966240896,-221.678074,0.000109,2]
[335190907,1723966240905,-151.0,0.000109,2]
[335190909,1723966240916,-151.0,0.000109,2]
[335190911,1723966240926,-151.0,0.000109,2]
[335190913,1723966240935,-151.0,0.000109,2]
[335190915,1723966240945,-226.869144,0.000109,2]
[335190917,1723966240955,-226.869144,0.000109,2]
[335190919,1723966240965,-226.869144,0.000109,2]
[335190921,1723966240975,-226.869144,0.000109,2]
[335190922,1723966240984,-198.439747,0.000109,2]
[335190923,1723966240993,-198.439747,0.000109,2]
[335190924,1723966241002,-198.439747,0.000109,2]
[335190925,1723966241012,-198.439747,0.000109,2]
[335190926,1723966241021,-151.0,0.000109,2]
[335190927,1723966241030,-151.0,0.000109,2]
[335190928,1723966241040,-151.0,0.000109,2]
[335190929,1723966241049,-151.0,0.000109,2]
[335190930,1723966241059,-202.369154,0.000109,2]
[335190931,1723966241067,-151.0,0.000109,2]
[335190932,1723966241076,-176.52866,0.000109,2]
[335190933,1723966241092,-215.46235398,0.000109,2]
[335190934,1723966241102,-1731.843548,0.000109,2]
[335190935,1723966241111,-1731.843548,0.000109,2]
[335190936,1723966241121,-1731.843548,0.000109,2]
[335190937,1723966241130,-319.747133,0.000109,2]
[335190938,1723966241140,-319.747133,0.000109,2]
[335190939,1723966241149,-1731.843548,0.000109,2]
[335190940,1723966241159,-1731.843548,0.000109,2]
[335190941,1723966241170,-1731.843548,0.000109,2]
[335190942,1723966241179,-858.28004,0.000109,2]
[335190943,1723966241188,-858.28004,0.000109,2]
[335190944,1723966241198,-858.28004,0.000109,2]
[335190945,1723966241207,-939.86,0.000109,2]
[335190946,1723966241215,-151.0,0.000109,2]
[335190947,1723966241225,-858.28004,0.000109,2]
[335190948,1723966241234,-858.28004,0.000109,2]
[335190949,1723966241243,-858.28004,0.000109,2]
[335190950,1723966241252,-151.0,0.000109,2]
[335190951,1723966241262,-151.0,0.000109,2]
[335190952,1723966241271,-151.0,0.000109,2]
[335190953,1723966241280,-151.0,0.000109,2]
[335190954,1723966241289,-173.502551,0.000109,2]
[335190955,1723966241298,-183.142897,0.000109,2]
[335190956,1723966241307,-183.142897,0.000109,2]
[335190957,1723966241316,-183.142897,0.000109,2]
[335190958,1723966241326,-183.142897,0.000109,2]
[335190959,1723966241335,-183.142897,0.000109,2]
[335190960,1723966241344,-183.142897,0.000109,2]
[335190961,1723966241353,-10000.0,0.000109,2]
[335190962,1723966241363,-10000.0,0.000109,2]
[335190963,1723966241372,-461.18,0.000109,2]
[335190964,1723966241381,-10000.0,0.000109,2]
[335190965,1723966241391,-1759.89239402,0.000109,2]
[335190966,1723966241405,-278.90148228,0.000109,2]
[335190967,1723966241416,-435.6744095,0.000109,2]
[335190968,1723966241427,-3279.485,0.000109,2]
[335190972,1723966243178,-2396.5336603,0.000109,2]
[335190973,1723966243190,-482.00237009,0.000109,2]
[335190974,1723966243204,-305.20127118,0.000109,2]
[335190975,1723966243214,-1062.30941263,0.000109,2]
[335190976,1723966243224,-1257.69058737,0.000109,2]
[335190977,1723966243234,-1806.49803386,0.000109,2]
[335190978,1723966243245,-6443.66564745,0.000109,2]
[335190979,1723966243256,-261.4769987,0.000109,2]
[335190980,1723966243268,-230.66873262,0.000109,2]
[335190981,1723966243277,-10000.0,0.000109,2]
[335190982,1723966243286,-151.0,0.000109,2]
[335190983,1723966243295,-3583.68072049,0.000109,2]
[335191041,1723966244067,-397.66172814,0.000109,2]
[335191043,1723966244080,-1122.81021144,0.000109,2]
[335191045,1723966244098,-4895.84733993,0.000109,2]
[335191047,1723966244106,-66.06424136,0.000109,2]
[335191049,1723966244117,-9933.93575864,0.000109,2]
[335191050,1723966244127,-2677.65299589,0.000109,2]
[335191052,1723966244138,-1000.0,0.000109,2]
[335191068,1723966244292,-700.1734372,0.000109,2]
[335191070,1723966244303,-600.26400703,0.000109,2]
[335191072,1723966244315,-636.87818,0.000109,2]
[335191074,1723966244328,-631.47709465,0.000109,2]
[335191076,1723966244338,-529.60407928,0.000109,2]
[335191078,1723966244349,-3223.95020595,0.000109,2]
[335191080,1723966244359,-243.49493,0.000109,2]
[335191082,1723966244369,-243.49493,0.000109,2]
[335191084,1723966244378,-243.49493,0.000109,2]
[335191085,1723966244387,-243.49493,0.000109,2]
[335191087,1723966244396,-243.49493,0.000109,2]
[335191088,1723966244405,-243.49493,0.000109,2]
[335191089,1723966244415,-187.164203,0.000109,2]
[335191090,1723966244423,-187.164203,0.000109,2]
[335191091,1723966244432,-151.0,0.000109,2]
[335191092,1723966244442,-192.369729,0.000109,2]
[335191093,1723966244451,-192.369729,0.000109,2]
[335191094,1723966244459,-151.0,0.000109,2]
[335191095,1723966244468,-151.0,0.000109,2]
[335191096,1723966244478,-648.42834043,0.000109,2]
[335191097,1723966244490,-88.58950281,0.000109,2]
[335191098,1723966244500,-190.510357,0.000109,2]
[335191099,1723966244510,-236.42082041,0.000109,2]
[335191101,1723966244521,-1326.30959715,0.000109,2]
[335191103,1723966244534,-392.29490377,0.000109,2]
[335191105,1723966244545,-343.69288208,0.000109,2]
[335191107,1723966244555,-14538.89333164,0.000109,2]
[335191109,1723966244564,-190.510357,0.000109,2]
[335191110,1723966244573,-151.0,0.000109,2]
[335191112,1723966244584,-150.0,0.00010903,2]
[335191114,1723966244593,-150.0,0.00010903,2]
[335191116,1723966244602,-150.0,0.00010904,2]
[335191118,1723966244611,-152.64908017,0.00010908,2]
[335191120,1723966244620,-1500.0,0.00010909,2]
[335191122,1723966244629,-150.0,0.00010911,2]
[335191124,1723966244639,-150.0,0.00010915,2]
[335191126,1723966244648,-150.0,0.00010916,2]
[335191128,1723966244657,-150.0,0.00010916,2]
[335191130,1723966244666,-1500.0,0.00010919,2]
[335191132,1723966244675,-150.0,0.0001092,2]
[335191134,1723966244684,-1500.0,0.00010934,2]
[335191136,1723966244693,-1500.0,0.00010938,2]
[335191138,1723966244702,-150.0,0.00010938,2]
[335191140,1723966244712,-150.0,0.00010939,2]
[335191142,1723966244721,-700.37,0.0001094,2]
[335191144,1723966244730,-151.0,0.00010941,2]
[335191146,1723966244740,-151.0,0.00010941,2]
[335191148,1723966244750,-151.0,0.00010941,2]
[335191150,1723966244760,-151.0,0.00010941,2]
[335191152,1723966244769,-151.0,0.00010941,2]
[335191154,1723966244778,-151.0,0.00010941,2]
[335191156,1723966244787,-151.0,0.00010941,2]
[335191158,1723966244796,-151.0,0.00010941,2]
[335191160,1723966244806,-150.0,0.00010942,2]
[335191162,1723966244815,-150.0,0.00010945,2]
[335191164,1723966244825,-207.242612,0.00010947,2]
[335191166,1723966244835,-151.0,0.00010947,2]
[335191168,1723966244844,-151.0,0.00010947,2]
[335191170,1723966244853,-151.0,0.00010947,2]
[335191172,1723966244863,-753.617282,0.00010947,2]
[335191174,1723966244871,-753.617282,0.00010947,2]
[335191176,1723966244881,-151.0,0.00010947,2]
[335191178,1723966244890,-150.0,0.00010949,2]
[335191180,1723966244900,-150.0,0.0001095,2]
[335191182,1723966244909,-150.0,0.00010951,2]
[335191184,1723966244918,-1500.0,0.00010952,2]
[335191186,1723966244928,-151.0,0.00010952,2]
[335191188,1723966244937,-187.164203,0.00010952,2]
[335191190,1723966244946,-187.164203,0.00010952,2]
[335191192,1723966244955,-151.0,0.00010952,2]
[335191194,1723966244964,-192.369729,0.00010952,2]
[335191196,1723966244974,-192.369729,0.00010952,2]
[335191198,1723966244983,-151.0,0.00010952,2]
[335191200,1723966244995,-151.0,0.00010952,2]
[335191202,1723966245005,-190.510357,0.00010952,2]
[335191204,1723966245014,-190.510357,0.00010952,2]
[335191206,1723966245023,-151.0,0.00010952,2]
[335191208,1723966245033,-179.85544557,0.00010953,2]
[335191210,1723966245042,-198.34310716,0.00010958,2]
[335191212,1723966245051,-150.0,0.00010958,2]
[335191214,1723966245060,-250.0,0.00010959,2]
[335191216,1723966245069,-150.0,0.00010959,2]
[335191218,1723966245079,-5575.04,0.00010959,2]
[335191220,1723966245094,-1500.0,0.00010959,2]
[335191222,1723966245103,-492.41,0.00010959,2]
[335191224,1723966245112,-661.15044,0.00010959,2]
[335191226,1723966245121,-661.15044,0.00010959,2]
[335191228,1723966245131,-151.0,0.00010959,2]
[335191230,1723966245140,-221.678074,0.00010959,2]
[335191232,1723966245149,-221.678074,0.00010959,2]
[335191234,1723966245158,-300.0,0.00010959,2]
[335191236,1723966245168,-151.0,0.00010959,2]
[335191238,1723966245178,-151.0,0.00010959,2]
[335191240,1723966245188,-226.869144,0.00010959,2]
[335191242,1723966245197,-226.869144,0.00010959,2]
[335191244,1723966245206,-198.439747,0.00010959,2]
[335191246,1723966245215,-198.439747,0.00010959,2]
[335191248,1723966245224,-150.0,0.00010963,2]
[335191250,1723966245234,-150.0,0.00010966,2]
[335191252,1723966245243,-150.0,0.00010966,2]
[335191254,1723966245252,-462.069901,0.00010967,2]
[335191256,1723966245261,-462.069901,0.00010967,2]
[335191258,1723966245270,-151.0,0.00010967,2]
[335191260,1723966245280,-151.0,0.00010967,2]
[335191262,1723966245289,-151.0,0.00010967,2]
[335191264,1723966245298,-151.0,0.00010967,2]
[335191266,1723966245307,-1731.843548,0.00010967,2]
[335191268,1723966245316,-319.747133,0.00010967,2]
[335191270,1723966245325,-1731.843548,0.00010967,2]
[335191272,1723966245335,-858.28004,0.00010967,2]
[335191274,1723966245344,-858.28004,0.00010967,2]
[335191276,1723966245353,-151.0,0.00010967,2]
[335191278,1723966245362,-183.142897,0.00010967,2]
[335191279,1723966245371,-183.142897,0.00010967,2]
[335191281,1723966245380,-10000.0,0.00010967,2]
[335191283,1723966245390,-10000.0,0.00010967,2]
[335191285,1723966245399,-423.886846,0.00010967,2]
[335191287,1723966245408,-243.49493,0.00010967,2]
[335191289,1723966245418,-243.49493,0.00010967,2]
[335191291,1723966245427,-200.0,0.00010973,2]
[335191293,1723966245435,-195.48733447,0.00010973,2]
[335191295,1723966245445,-200.22556273,0.00010973,2]
[335191297,1723966245454,-200.38227572,0.00010973,2]
[335191299,1723966245464,-150.0,0.00010974,2]
[335191302,1723966245474,-150.0,0.00010974,2]
[335191304,1723966245483,-151.0,0.00010977,2]
[335191305,1723966245491,-151.0,0.00010977,2]
[335191307,1723966245500,-151.0,0.00010977,2]
[335191309,1723966245509,-226.869144,0.00010977,2]
[335191311,1723966245519,-226.869144,0.00010977,2]
[335191313,1723966245528,-198.439747,0.00010977,2]
[335191315,1723966245537,-198.439747,0.00010977,2]
[335191317,1723966245547,-150.0,0.0001098,2]
[335191319,1723966245557,-150.0,0.00010982,2]
[335191321,1723966245566,-547.10490971,0.00010989,2]
[335191323,1723966245575,-150.0,0.0001099,2]
[335191325,1723966245585,-150.0,0.00010991,2]
[335191327,1723966245595,-150.0,0.00010992,2]
[335191329,1723966245604,-150.0,0.00010996,2]
[335191331,1723966245615,-150.0,0.00010996,2]
[335191333,1723966245625,-462.51191892,0.00010997,2]
[335191335,1723966245637,-502.08,0.00010998,2]
[335191337,1723966245647,-4140.14452985,0.00010999,2]
[335191339,1723966245656,-151.57558315,0.00010999,2]
[335191341,1723966245664,-985.73362732,0.00010999,2]
[335191342,1723966245674,-500.0,0.00010999,2]
[335191343,1723966245683,-500.0,0.00010999,2]
[335191344,1723966245691,-500.0,0.00010999,2]
[335191345,1723966245700,-500.0,0.00010999,2]
[335191346,1723966245710,-500.0,0.00010999,2]
[335191347,1723966245719,-500.0,0.00010999,2]
[335191348,1723966245729,-500.0,0.00010999,2]
[335191349,1723966245738,-300.59916347,0.00010999,2]
[335191350,1723966245747,-500.0,0.00010999,2]
[335191351,1723966245756,-316.58833864,0.00010999,2]
[335191352,1723966245765,-151.0,0.00010999,2]
[335191353,1723966245774,-151.0,0.00010999,2]
[335191354,1723966245783,-151.0,0.00010999,2]
[335191355,1723966245792,-151.0,0.00010999,2]
[335191356,1723966245801,-286.59128,0.00010999,2]
[335191357,1723966245810,-151.0,0.00010999,2]